bitfinex/quotes_SOLUSD_20240826
["timestamp","ask_amount","ask_price","bid_price","bid_amount"]
[1724655238714,0.8266596,159.65,159.59,3.83237054]
[1724655239238,0.8266596,159.65,159.6,1.25291903]
[1724655239436,0.8266596,159.65,159.6,7.51851903]
[1724655239624,0.8266596,159.65,159.61,1.25284952]
[1724655240642,0.8266596,159.65,159.6,7.51834948]
[1724655240816,0.8266596,159.65,159.61,1.2528495]
[1724655242113,0.8266596,159.65,159.64,6.264]
[1724655242316,0.8266596,159.65,159.64,13.70577749]
[1724655243244,6.2611,159.72,159.64,26.1893]
[1724655243451,24.15390511,159.76,159.65,1.25241717]
[1724655243807,24.15390511,159.74,159.64,6.1893]
[1724655244121,6.2622,159.69,159.64,6.1893]
[1724655244320,18.88,159.74,159.64,6.1893]
[1724655244321,7.60628841,159.68,159.64,6.1893]
[1724655244831,7.60668841,159.67,159.62,15.2873]
[1724655245421,6.2624,159.69,159.63,1.2527257]
[1724655245935,6.2624,159.69,159.62,21.5521]
[1724655246134,24.15390511,159.74,159.63,3.82901863]
[1724655246341,24.15390511,159.74,159.65,6.2636]
[1724655246342,7.60468841,159.73,159.65,6.2636]
[1724655246633,6.2609,159.72,159.66,6.3264]
[1724655246938,6.2609,159.72,159.67,1.25236502]
[1724655247339,6.2609,159.72,159.66,6.3264]
[1724655248151,24.15390511,159.74,159.66,6.3264]
[1724655248152,6.2614,159.71,159.66,6.3264]
[1724655248943,6.2615,159.71,159.66,6.3264]
[1724655249326,6.2609,159.72,159.66,6.3264]
[1724655249533,1.34378841,159.71,159.66,6.3264]
[1724655250141,6.2609,159.72,159.66,6.3264]
[1724655250329,6.2609,159.72,159.67,1.25238398]
[1724655250931,6.2605,159.73,159.69,16.4234]
[1724655251550,6.261,159.72,159.69,16.4234]
[1724655251919,1.34378841,159.71,159.69,16.4234]
[1724655252619,6.261,159.72,159.69,16.4234]
[1724655252825,1.34378841,159.71,159.66,6.3264]
[1724655253229,6.2617,159.7,159.66,6.3264]
[1724655253632,1.34378841,159.72,159.66,6.3264]
[1724655254424,6.2613,159.71,159.66,6.3264]
[1724655255949,6.2617,159.7,159.66,6.3264]
[1724655257641,6.2617,159.7,159.66,7.57888797]
[1724655257838,24.13250253,159.73,159.66,7.57888797]
[1724655258247,24.13250253,159.73,159.66,6.3264]
[1724655258756,6.2613,159.71,159.66,6.3264]
[1724655258965,6.2613,159.71,159.66,7.57886783]
[1724655260460,6.2613,159.71,159.66,6.3264]
[1724655260668,6.2613,159.71,159.66,7.57886727]
[1724655263659,24.13250253,159.75,159.66,6.3264]
[1724655263962,20.0,159.74,159.66,6.3264]
[1724655264642,20.0,159.74,159.67,1.25225635]
[1724655265055,20.0,159.74,159.66,6.3264]
[1724655265258,1.34378841,159.73,159.66,6.3264]
[1724655265672,20.0,159.74,159.66,6.3264]
[1724655265971,20.0,159.74,159.67,1.25238001]
[1724655266343,6.261,159.72,159.67,1.25238001]
[1724655267470,6.2606,159.73,159.66,6.3264]
[1724655267858,6.2617,159.71,159.66,6.3264]
[1724655268057,1.34378841,159.73,159.66,6.3264]
[1724655268368,6.2618,159.7,159.66,6.3264]
[1724655268548,6.2613,159.71,159.66,6.3264]
[1724655269154,6.2609,159.72,159.66,6.3264]
[1724655269480,6.2605,159.73,159.66,6.3264]
[1724655270553,20.0,159.74,159.67,1.25230697]
[1724655270857,20.0,159.74,159.68,1.25224954]
[1724655271368,6.2601,159.75,159.68,1.25224954]
[1724655271773,6.2593,159.76,159.68,1.25224954]
[1724655272249,6.2593,159.76,159.68,15.7682]
[1724655272456,6.2593,159.76,159.69,1.25211922]
[1724655273579,6.2602,159.74,159.69,1.25211922]
[1724655274582,6.2597,159.75,159.69,1.25211922]
[1724655277697,6.2597,159.75,159.68,10.21224392]
[1724655278069,6.2597,159.75,159.69,1.1603031]
[1724655279274,6.2601,159.74,159.68,10.21224392]
[1724655279967,1.56509013,159.77,159.68,10.21224392]
[1724655280167,1.56529553,159.76,159.68,10.21224392]
[1724655280584,25.68211259,159.76,159.68,10.21224392]
[1724655280892,6.2617,159.71,159.68,10.21224392]
[1724655281095,7.82739257,159.7,159.68,10.21224392]
[1724655281261,6.2618,159.7,159.68,10.21224392]
[1724655282191,6.2613,159.71,159.68,10.21224392]
[1724655283088,6.261,159.72,159.68,10.21224392]
[1724655285391,6.261,159.72,159.69,3.82503073]
[1724655285564,6.261,159.72,159.68,10.21224392]
[1724655287068,65.0,159.75,159.68,10.21224392]
[1724655287069,6.2608,159.73,159.68,10.21224392]
[1724655292268,6.2611,159.72,159.68,10.21224392]
[1724655293710,7.82688351,159.71,159.68,10.21224392]
[1724655293882,1.56559546,159.7,159.68,10.21224392]
[1724655295002,7.82729546,159.7,159.68,10.21224392]
[1724655295204,6.2617,159.7,159.68,10.21224392]
[1724655295396,1.56561952,159.71,159.66,6.3264]
[1724655295596,6.2629,159.67,159.64,15.9362]
[1724655295790,11.21871733,159.66,159.64,15.9362]
[1724655295992,9.6527459,159.66,159.64,15.9362]
[1724655297802,15.9160459,159.66,159.62,6.0306]
[1724655298206,9.6527459,159.66,159.62,6.0306]
[1724655298520,15.9155459,159.68,159.62,6.0306]
[1724655299312,7.82886992,159.67,159.62,6.0306]
[1724655299684,6.2629,159.67,159.62,6.0306]
[1724655300619,9.6527459,159.7,159.63,1.16276983]
[1724655300788,6.2616,159.71,159.63,7.42696983]
[1724655301399,6.2617,159.7,159.63,7.42696983]
[1724655301626,6.2617,159.7,159.63,6.2642]
[1724655304403,15.9144459,159.7,159.63,6.2642]
[1724655306197,7.82784423,159.69,159.63,6.2642]
[1724655308916,6.2625,159.68,159.62,12.2954]
[1724655309091,75.0302888,159.75,159.62,12.2954]
[1724655309092,6.2637,159.65,159.62,6.0306]
[1724655309417,1.5661057,159.65,159.62,6.0306]
[1724655312202,7.83036164,159.64,159.62,6.0306]
[1724655312405,17.48310754,159.64,159.62,6.0306]
[1724655312708,1.56630158,159.63,159.6,15.6998]
[1724655314013,9.6527459,159.62,159.58,6.2385]
[1724655314298,15.9183459,159.6,159.58,6.2385]
[1724655314609,1.56665733,159.61,159.58,6.2385]
[1724655314802,15.9178459,159.62,159.58,6.2385]
[1724655315226,9.6527459,159.62,159.58,6.2385]
[1724655315398,1.56653589,159.61,159.58,6.2385]
[1724655315605,6.2655,159.61,159.58,6.2385]
[1724655316022,6.2657,159.6,159.58,6.2385]
[1724655316227,1.5665749,159.61,159.56,15.8623]
[1724655316434,7.8318749,159.61,159.56,15.8623]
[1724655316651,6.2653,159.61,159.56,15.8623]
[1724655316796,1.566587,159.6,159.56,15.8623]
[1724655317001,11.2193329,159.6,159.56,15.8623]
[1724655317201,6.2664,159.58,159.56,15.8623]
[1724655317500,1.566822,159.59,159.56,15.8623]
[1724655318007,7.833022,159.59,159.56,15.8623]
[1724655318212,6.2667,159.58,159.56,15.8623]
[1724655318828,41.04837386,159.65,159.56,15.8623]
[1724655319005,9.6527459,159.62,159.56,15.8623]
[1724655319327,6.2656,159.6,159.56,15.8623]
[1724655321722,9.6527459,159.62,159.56,15.8623]
[1724655321917,6.2656,159.61,159.56,15.8623]
[1724655322129,7.83251982,159.6,159.56,15.8623]
[1724655322444,11.21946572,159.6,159.56,15.8623]
[1724655322617,6.2668,159.57,159.56,15.8623]
[1724655322806,9.6527459,159.58,159.56,15.8623]
[1724655323011,9.6527459,159.58,159.51,6.2691]
[1724655323012,6.2672,159.57,159.52,16.4242]
[1724655323229,7.83426055,159.57,159.52,16.4242]
[1724655323429,1.56706055,159.57,159.52,16.4242]
[1724655324239,15.9191459,159.58,159.52,16.4242]
[1724655324443,6.2661,159.59,159.53,6.2683]
[1724655324609,6.2661,159.59,159.54,1.16429994]
[1724655324809,6.2661,159.59,159.53,6.2683]
[1724655327115,7.8329138,159.59,159.53,6.2683]
[1724655328116,15.9193459,159.58,159.52,16.4242]
[1724655329146,6.2668,159.57,159.52,16.4242]
[1724655329337,9.6527459,159.58,159.52,22.6929]
[1724655330533,9.6527459,159.58,159.52,16.4242]
[1724655331228,1.56700174,159.57,159.52,16.4242]
[1724655331425,7.83380174,159.57,159.52,16.4242]
[1724655331939,6.2668,159.57,159.52,16.4242]
[1724655332946,9.6527459,159.6,159.52,17.58910857]
[1724655333150,9.6527459,159.6,159.52,16.4242]
[1724655333323,9.6527459,159.6,159.54,6.2678]
[1724655333324,6.266,159.59,159.54,6.2678]
[1724655333934,6.266,159.59,159.53,6.2683]
[1724655334528,9.6527459,159.6,159.52,16.4242]
[1724655334529,6.2677,159.55,159.52,16.4242]
[1724655334731,9.6527459,159.56,159.52,16.4242]
[1724655335641,6.2676,159.55,159.52,16.4242]
[1724655335927,9.6527459,159.56,159.52,16.4242]
[1724655337053,6.2669,159.57,159.52,16.4242]
[1724655338421,6.2672,159.56,159.52,16.4242]
[1724655339348,15.9199459,159.56,159.52,16.4242]
[1724655340228,1.56709402,159.55,159.52,16.4242]
[1724655340745,11.21984121,159.54,159.47,6.4839]
[1724655340947,6.2696,159.5,159.47,6.4839]
[1724655341150,1.56766645,159.49,159.47,6.4839]
[1724655342552,1.56766645,159.49,159.46,15.0574]
[1724655342855,7.83766645,159.49,159.46,15.0574]
[1724655343034,1.56780839,159.48,159.46,15.0574]
[1724655343643,17.49105429,159.48,159.46,15.0574]
[1724655343838,1.5678118,159.47,159.46,15.0574]
[1724655344044,1.5678118,159.47,159.43,6.335]
[1724655344045,1.56781507,159.51,159.43,6.335]
[1724655344255,80.6691,159.55,159.43,6.335]
[1724655344256,25.76897745,159.54,159.43,6.335]
[1724655344558,6.2695,159.51,159.44,6.2719]
[1724655344853,1.56761427,159.5,159.44,6.2719]
[1724655345228,6.2695,159.51,159.44,6.2719]
[1724655345739,1.56761297,159.5,159.44,6.2719]
[1724655345941,6.2695,159.51,159.44,6.2719]
[1724655346134,6.27,159.49,159.43,12.6072]
[1724655346457,1.56778164,159.48,159.43,12.6072]
[1724655346843,1.56778164,159.48,159.43,6.335]
[1724655347152,26.2695,159.51,159.44,6.2718]
[1724655347351,6.2696,159.5,159.44,6.2718]
[1724655350057,1.5676522,159.49,159.42,16.4728]
[1724655350356,6.2716,159.45,159.42,16.4728]
[1724655350578,6.2723,159.43,159.42,16.4728]
[1724655350862,1.56818671,159.44,159.38,16.2404]
[1724655350863,6.2732,159.41,159.38,16.2404]
[1724655351168,1.56847311,159.4,159.35,12.6293]
[1724655351355,6.2732,159.41,159.35,12.6293]
[1724655351356,6.2727,159.42,159.36,6.2749]
[1724655351543,6.2723,159.43,159.37,6.2746]
[1724655352164,6.2723,159.43,159.36,6.275]
[1724655353254,6.2727,159.42,159.36,6.275]
[1724655353463,7.84114775,159.42,159.36,6.275]
[1724655353636,6.2727,159.42,159.36,6.275]
[1724655356247,6.2731,159.41,159.35,6.3539]
[1724655356457,1.56877361,159.4,159.35,6.3539]
[1724655356762,1.56877577,159.39,159.35,6.3539]
[1724655356976,1.56872902,159.4,159.35,6.3539]
[1724655357643,1.56877316,159.39,159.35,6.3539]
[1724655359185,24.20136561,159.38,159.32,16.2404]
[1724655359464,7.84403463,159.37,159.32,16.2404]
[1724655359662,24.20136561,159.38,159.32,22.517]
[1724655359663,6.2743,159.38,159.32,22.517]
[1724655360045,7.84275913,159.39,159.33,6.2762]
[1724655360245,24.20136561,159.42,159.32,16.2404]
[1724655360551,20.41506506,159.44,159.32,40.44176561]
[1724655360552,1.56873019,159.43,159.32,40.44176561]
[1724655360750,1.56850561,159.42,159.32,40.44176561]
[1724655361357,7.84120561,159.42,159.36,6.275]
[1724655361568,6.2727,159.42,159.36,6.275]
[1724655361867,1.5684603,159.43,159.38,6.01]
[1724655362176,6.42096506,159.48,159.39,17.16551426]
[1724655362471,256.2,159.5,159.39,17.16551426]
[1724655362472,6.2696,159.5,159.43,6.272]
[1724655362843,24.20136561,159.52,159.43,6.272]
[1724655362844,7.83786472,159.49,159.43,6.272]
[1724655363052,6.27,159.49,159.43,6.272]
[1724655363253,6.2696,159.5,159.44,6.2718]
[1724655363764,1.56782458,159.49,159.44,6.2718]
[1724655363948,6.2696,159.5,159.44,6.2718]
[1724655364243,6.2696,159.5,159.39,60.9975]
[1724655364244,1.56770448,159.49,159.39,60.9975]
[1724655364451,1.56783022,159.48,159.39,60.9975]
[1724655365358,1.56783022,159.48,159.39,15.9975]
[1724655365565,6.2708,159.47,159.41,6.2731]
[1724655365764,7.83938085,159.46,159.39,22.2711]
[1724655365964,1.56815023,159.45,159.39,15.9975]
[1724655366576,24.20136561,159.44,159.39,15.9975]
[1724655366757,1.56838204,159.43,159.39,15.9975]
[1724655367979,1.56839424,159.42,159.39,15.9975]
[1724655368756,1.56839424,159.42,159.38,6.01]
[1724655369212,1.56839424,159.42,159.36,6.275]
[1724655369859,45.0,159.46,159.37,7.44273038]
[1724655369860,69.20136561,159.46,159.37,7.44273038]
[1724655370060,6.272,159.44,159.37,7.44273038]
[1724655370267,6.272,159.44,159.37,6.2743]
[1724655371693,6.272,159.44,159.38,6.2742]
[1724655372057,1.56833504,159.43,159.38,6.2742]
[1724655373069,1.56833504,159.43,159.39,6.2738]
[1724655373272,21.56833449,159.45,159.38,6.2742]
[1724655374390,6.272,159.44,159.38,6.2742]
[1724655375059,27.83983449,159.45,159.39,6.2738]
[1724655375267,25.76970043,159.48,159.35,15.3138]
[1724655375486,20.0,159.47,159.36,45.0]
[1724655375672,7.83949029,159.46,159.4,6.2735]
[1724655375874,1.56808968,159.45,159.4,6.2735]
[1724655376797,7.83969249,159.45,159.39,6.2738]
[1724655377689,6.2727,159.42,159.35,15.3138]
[1724655379370,7.84068066,159.43,159.35,15.3138]
[1724655379580,20.0,159.47,159.36,1.16814939]
[1724655379581,6.2719,159.45,159.36,1.16814939]
[1724655379790,6.2712,159.46,159.37,1.1677472]
[1724655379983,6.2712,159.46,159.36,45.0]
[1724655380191,6.2715,159.45,159.4,6.2734]
[1724655380895,7.84021344,159.44,159.35,15.3138]
[1724655381269,6.2723,159.43,159.38,6.2742]
[1724655381773,7.8402282,159.44,159.38,6.2742]
[1724655383086,1.5683282,159.44,159.39,6.2738]
[1724655383395,1.5683282,159.44,159.35,15.3138]
[1724655383593,24.20136561,159.44,159.36,6.2748]
[1724655383767,6.2728,159.42,159.36,6.2748]
[1724655383967,7.84124629,159.42,159.36,6.2748]
[1724655384184,6.2728,159.42,159.36,6.2748]
[1724655384377,7.84071814,159.43,159.37,6.2746]
[1724655384782,7.84071501,159.43,159.37,6.2746]
[1724655385182,6.2723,159.43,159.37,6.2746]
[1724655385496,6.2723,159.43,159.38,1.16828833]
[1724655387495,7.84071632,159.43,159.37,6.2746]
[1724655387793,1.56841667,159.42,159.37,6.2746]
[1724655389274,7.84071784,159.43,159.37,6.2746]
[1724655392395,20.0,159.47,159.35,15.3138]
[1724655392596,24.20136561,159.42,159.36,1.25634851]
[1724655392781,24.20136561,159.4,159.35,15.3138]
[1724655392984,1.56863624,159.39,159.35,15.3138]
[1724655393299,1.56863624,159.39,159.31,15.0316]
[1724655393504,6.2749,159.37,159.31,15.0316]
[1724655393701,1.56900608,159.36,159.31,15.0316]
[1724655393908,6.2749,159.37,159.31,15.0316]
[1724655393909,7.84391876,159.37,159.31,21.3086]
[1724655394113,6.2749,159.37,159.31,21.3086]
[1724655394287,24.20136561,159.38,159.31,21.3086]
[1724655394604,25.77030618,159.38,159.31,21.3086]
[1724655395012,32.04460618,159.38,159.31,21.3086]
[1724655395607,7.85493956,159.37,159.31,21.3086]
[1724655395806,7.85493956,159.36,159.31,21.3086]
[1724655396105,7.85493956,159.35,159.31,21.3086]
[1724655396321,30.47566561,159.38,159.31,21.3086]
[1724655396322,7.85493956,159.34,159.31,21.3086]
[1724655396489,7.85493956,159.33,159.31,21.3086]
[1724655396691,7.85493956,159.32,159.31,21.3086]
[1724655398792,6.2726,159.43,159.36,6.275]
[1724655399106,24.20136561,159.44,159.36,6.275]
[1724655399107,7.84114186,159.42,159.36,6.275]
[1724655399303,7.85411276,159.41,159.31,84.23296561]
[1724655399616,15.6962453,159.4,159.34,6.2756]
[1724655399801,9.42294028,159.39,159.31,15.0316]
[1724655399998,7.85411276,159.38,159.31,15.0316]
[1724655400193,1.56882752,159.39,159.31,15.0316]
[1724655400194,7.85411276,159.37,159.31,15.0316]
[1724655400403,7.85411276,159.36,159.31,15.0316]
[1724655400604,7.85411276,159.35,159.31,15.0316]
[1724655400806,1.56882752,159.39,159.32,6.2763]
[1724655400807,7.85411276,159.34,159.32,6.2763]
[1724655401009,7.85411276,159.33,159.32,6.2763]
[1724655401513,7.85488853,159.33,159.32,6.2763]
[1724655402222,7.85488853,159.33,159.31,15.0316]
[1724655402397,7.85488853,159.32,159.31,21.3086]
[1724655404300,6.2743,159.38,159.32,6.2765]
[1724655404599,7.85472245,159.37,159.32,6.2765]
[1724655404799,7.85472245,159.36,159.32,6.2765]
[1724655405010,7.85472245,159.35,159.32,6.2765]
[1724655405201,7.85472245,159.34,159.32,6.2765]
[1724655405401,7.85472245,159.33,159.32,6.2765]
[1724655405590,7.85472245,159.33,159.31,21.3086]
[1724655405790,7.8547291,159.32,159.31,21.3086]
[1724655407801,7.84370204,159.37,159.31,21.3086]
[1724655408001,7.85480745,159.36,159.31,21.3086]
[1724655408207,7.85480745,159.35,159.31,21.3086]
[1724655408423,7.85480745,159.34,159.31,21.3086]
[1724655408726,7.85480745,159.33,159.31,21.3086]
[1724655408931,7.85481257,159.32,159.31,21.3086]
[1724655412722,7.84364791,159.37,159.31,21.3086]
[1724655412923,6.2747,159.37,159.31,21.3086]
[1724655413122,7.85478651,159.36,159.31,21.3086]
[1724655413307,7.85478651,159.35,159.31,21.3086]
[1724655413626,7.85478651,159.34,159.31,21.3086]
[1724655413830,7.85478651,159.33,159.31,21.3086]
[1724655414023,7.85478651,159.32,159.31,21.3086]
[1724655414250,24.20136561,159.4,159.32,6.2765]
[1724655414251,6.2743,159.38,159.32,6.2765]
[1724655414731,7.85472887,159.37,159.32,6.2765]
[1724655414917,7.85472887,159.36,159.32,6.2765]
[1724655415117,7.85472887,159.35,159.32,6.2765]
[1724655415415,7.85472887,159.34,159.32,6.2765]
[1724655415622,7.85472887,159.33,159.32,6.2765]
[1724655416325,7.85472887,159.33,159.32,7.44618475]
[1724655417003,7.85472887,159.33,159.32,6.2765]
[1724655417206,7.85472887,159.33,159.31,21.3085]
[1724655417427,7.85472887,159.32,159.31,21.3085]
[1724655418621,7.85472887,159.32,159.31,15.0316]
[1724655418932,7.85472887,159.32,159.3,12.4748]
[1724655419142,7.85472887,159.31,159.27,16.4262]
[1724655419310,7.85472887,159.3,159.28,6.2782]
[1724655419635,9.69434429,159.33,159.27,16.4262]
[1724655419636,7.85472887,159.29,159.27,22.7047]
[1724655419837,9.4243768,159.28,159.25,0.8266596]
[1724655420021,6.279,159.26,159.25,0.8266596]
[1724655420207,52.84912034,159.26,159.25,0.8266596]
[1724655420410,80.70891085,159.26,159.25,0.8266596]
[1724655420835,86.28899026,159.26,159.25,0.8266596]
[1724655421428,6.2803,159.23,159.16,6.2829]
[1724655421614,15.01027589,159.22,159.16,6.2829]
[1724655421943,7.85979051,159.21,159.17,6.2825]
[1724655422235,25.84131073,159.25,159.18,6.2821]
[1724655422444,13.4412664,159.24,159.18,6.2821]
[1724655422735,13.4412664,159.23,159.18,6.2821]
[1724655422938,7.86110069,159.22,159.18,6.2821]
[1724655423437,7.8500041,159.25,159.18,6.2821]
[1724655423628,13.44106099,159.24,159.18,6.2821]
[1724655423818,9.43117449,159.23,159.18,6.2821]
[1724655424022,7.86110951,159.22,159.16,6.2828]
[1724655424211,7.85153563,159.21,159.13,21.5828]
[1724655424418,1.57043563,159.21,159.16,6.2827]
[1724655424618,24.27090663,159.23,159.13,21.5828]
[1724655424811,30.55040663,159.25,159.18,6.2821]
[1724655425020,13.44130164,159.24,159.18,6.2821]
[1724655425223,32.12060676,159.25,159.18,6.2821]
[1724655425418,9.43132074,159.24,159.18,6.2821]
[1724655425630,32.12065571,159.25,159.18,6.2821]
[1724655425828,14.14079142,159.24,159.18,6.2821]
[1724655426143,1.5702492,159.23,159.17,6.2825]
[1724655426311,25.84119916,159.25,159.18,6.2821]
[1724655426513,7.86103058,159.24,159.19,6.2817]
[1724655426712,26.2791,159.26,159.19,6.2817]
[1724655426937,7.86097438,159.25,159.19,6.2817]
[1724655427122,9.43108978,159.24,159.13,21.5828]
[1724655427443,1.57029494,159.23,159.17,6.2824]
[1724655427938,6.2802,159.24,159.18,6.2821]
[1724655428731,1.57025505,159.23,159.18,6.2821]
[1724655428928,1.57025633,159.23,159.18,6.2821]
[1724655429527,1.57025633,159.23,159.17,6.2824]
[1724655429817,32.12176296,159.23,159.16,6.2829]
[1724655431026,7.85039493,159.24,159.17,6.2824]
[1724655431224,6.2799,159.24,159.17,6.2824]
[1724655431426,6.2799,159.24,159.18,6.2821]
[1724655431642,39.83530348,159.29,159.15,24.27090663]
[1724655431829,6.2787,159.27,159.21,6.2809]
[1724655432030,13.9941,159.29,159.17,24.27090663]
[1724655432031,1.56988003,159.26,159.17,24.27090663]
[1724655432246,1.56988003,159.26,159.2,6.2814]
[1724655432429,6.2795,159.25,159.19,6.2816]
[1724655432835,6.279,159.26,159.2,6.2813]
[1724655433729,1.57013703,159.27,159.21,6.2809]
[1724655433931,1.57013703,159.27,159.15,24.27090663]
[1724655433932,7.84818654,159.28,159.22,6.2806]
[1724655435348,6.2787,159.27,159.15,24.27090663]
[1724655435551,13.9941,159.29,159.2,6.281]
[1724655435552,32.11983796,159.26,159.2,6.281]
[1724655435725,45.56233113,159.26,159.2,6.281]
[1724655435928,7.86184118,159.25,159.19,6.2817]
[1724655436221,25.84115591,159.24,159.17,6.2825]
[1724655436446,7.85059276,159.23,159.17,6.2825]
[1724655436646,7.85059276,159.23,159.18,6.2821]
[1724655436856,30.55070663,159.24,159.18,6.2821]
[1724655437738,1.57024439,159.23,159.18,6.2821]
[1724655438046,6.2806,159.22,159.16,6.2829]
[1724655438237,1.57042979,159.21,159.16,6.2829]
[1724655438942,7.85142979,159.21,159.16,6.2829]
[1724655439122,1.57050076,159.2,159.16,6.2829]
[1724655439322,1.57050076,159.2,159.13,21.5828]
[1724655439323,1.57050076,159.2,159.15,6.2833]
[1724655439954,7.85152581,159.21,159.15,6.2833]
[1724655440154,6.2807,159.22,159.17,6.2825]
[1724655440333,30.55100663,159.24,159.17,6.2825]
[1724655440532,32.12127114,159.24,159.17,6.2825]
[1724655441161,7.85049442,159.23,159.17,6.2825]
[1724655443149,7.85049442,159.23,159.13,21.5828]
[1724655443150,6.2809,159.22,159.13,21.5828]
[1724655443345,1.57040834,159.21,159.13,21.5828]
[1724655443752,7.8513067,159.22,159.13,21.5828]
[1724655444458,7.8513067,159.22,159.16,6.2829]
[1724655444832,1.57040801,159.21,159.16,6.2829]
[1724655445039,7.85150801,159.21,159.15,6.2833]
[1724655445461,1.57052982,159.2,159.15,6.2833]
[1724655446428,6.2811,159.21,159.15,6.2833]
[1724655447054,1.57052581,159.2,159.15,6.2833]
[1724655447228,6.2811,159.21,159.15,6.2833]
[1724655447428,6.2811,159.21,159.16,6.2829]
[1724655448137,6.2805,159.23,159.17,6.2824]
[1724655448338,6.2807,159.22,159.16,6.2829]
[1724655449555,6.2807,159.22,159.09,0.8266596]
[1724655449556,30.55300663,159.19,159.13,6.284]
[1724655450058,30.55300663,159.19,159.14,6.2836]
[1724655450364,7.8520458,159.2,159.14,6.2836]
[1724655450535,6.2814,159.2,159.14,6.2836]
[1724655453138,7.85192381,159.2,159.14,6.2836]
[1724655453936,24.27090663,159.23,159.11,24.27090663]
[1724655454136,24.27090663,159.23,159.12,65.0]
[1724655454769,24.27090663,159.23,159.16,6.2826]
[1724655454770,6.2806,159.22,159.16,6.2826]
[1724655455256,6.279,159.26,159.2,6.281]
[1724655455473,7.86198368,159.25,159.21,6.2809]
[1724655455675,7.84854321,159.27,159.21,6.2809]
[1724655455845,7.8607688,159.26,159.21,6.2809]
[1724655456050,1.56994321,159.27,159.21,6.2809]
[1724655456254,7.86061121,159.26,159.2,6.2813]
[1724655456443,7.86077524,159.25,159.2,6.2813]
[1724655456778,32.11954984,159.27,159.2,6.2813]
[1724655456962,7.86043161,159.26,159.21,6.2809]
[1724655457147,1.56994321,159.27,159.21,6.2809]
[1724655457348,7.86027094,159.26,159.21,6.2809]
[1724655457663,6.2782,159.28,159.21,6.2809]
[1724655457867,7.8602147,159.27,159.21,6.2809]
[1724655458082,6.2792,159.26,159.2,21.7795]
[1724655458373,7.8602134,159.26,159.22,6.2806]
[1724655458572,6.2782,159.29,159.2,21.7795]
[1724655458770,7.86025954,159.28,159.2,21.7795]
[1724655459066,7.86025954,159.27,159.2,21.7795]
[1724655459300,7.86025954,159.26,159.2,21.7795]
[1724655459447,7.84796517,159.28,159.2,21.7795]
[1724655459448,7.86025954,159.25,159.2,21.7795]
[1724655459645,7.84796517,159.28,159.2,21.7795]
[1724655459948,7.8602134,159.27,159.22,6.2805]
[1724655460149,7.8602134,159.26,159.22,6.2805]
[1724655460346,280.47090663,159.32,159.25,6.2792]
[1724655460347,262.477,159.32,159.25,6.2792]
[1724655460662,7.85927537,159.31,159.25,6.2792]
[1724655460872,7.85927537,159.3,159.25,6.2792]
[1724655461067,7.85927537,159.29,159.26,7.44963827]
[1724655461266,6.2763,159.33,159.27,1.17058659]
[1724655461472,24.27090663,159.36,159.27,1.17058659]
[1724655461473,7.85848306,159.28,159.27,22.53868659]
[1724655461786,6.2758,159.35,159.27,22.53868659]
[1724655461787,7.84499753,159.35,159.29,6.2777]
[1724655461950,7.85664427,159.34,159.29,6.2777]
[1724655462154,7.85664427,159.33,159.29,6.2777]
[1724655462459,1.5691132,159.37,159.27,15.0895]
[1724655462460,24.27090663,159.38,159.31,6.277]
[1724655462776,7.85545285,159.37,159.31,6.277]
[1724655462972,7.85545285,159.36,159.31,6.277]
[1724655463203,7.85545285,159.35,159.31,6.277]
[1724655463494,6.2747,159.38,159.31,6.277]
[1724655463801,15.69859606,159.37,159.27,39.36040663]
[1724655463979,7.85479479,159.36,159.31,6.277]
[1724655464184,7.85479479,159.35,159.31,6.2766]
[1724655464370,7.85479479,159.34,159.32,6.2766]
[1724655464565,7.84274208,159.39,159.32,6.2766]
[1724655464806,7.85484208,159.38,159.32,6.2766]
[1724655465095,7.85483588,159.37,159.32,6.2766]
[1724655465309,7.85483588,159.36,159.32,6.2766]
[1724655465503,7.85483588,159.36,159.27,39.36040663]
[1724655465504,6.2761,159.34,159.27,15.0895]